bitfinex-derivatives/quotes_ETHF0:USTF0_20210407
["timestamp","ask_amount","ask_price","bid_price","bid_amount"]
[1617812604966,0.02963265,1987.4,1987.2,111.2685]
[1617812605288,0.01481318,1987.5,1987.2,111.2685]
[1617812605289,0.01481318,1987.5,1987.2,117.3285]
[1617812605464,0.0148115,1987.9,1987.2,117.3285]
[1617812605863,0.02962299,1988.0,1987.2,117.3285]
[1617812605864,0.0148109,1988.0,1987.2,117.3285]
[1617812606163,0.05924362,1988.2,1987.2,117.3285]
[1617812606164,0.01481012,1988.2,1987.2,117.3285]
[1617812606401,0.01481012,1988.2,1988.1,2.90695]
[1617812606564,0.01481012,1988.2,1988.1,5.43605]
[1617812606969,0.0296205,1988.2,1988.1,5.43605]
[1617812607378,0.01480986,1988.2,1988.1,5.43605]
[1617812608168,0.01480986,1988.2,1988.1,79.71515]
[1617812608685,2.92175986,1988.2,1988.1,2.5291]
[1617812608969,83.0209,1987.8,1986.9,30.0]
[1617812609170,85.8551,1987.8,1986.9,30.0]
[1617812609572,85.8551,1987.8,1987.0,6.12]
[1617812609770,2.8342,1987.8,1987.0,6.12]
[1617812609971,2.84902571,1987.8,1987.0,6.12]
[1617812610270,2.84902571,1987.8,1987.1,63.5427]
[1617812610471,2.90695,1987.2,1987.1,66.44965]
[1617812610670,5.07985,1987.2,1987.1,66.44965]
[1617812610872,5.07985,1987.2,1987.1,2.90695]
[1617812611873,5.07985,1987.2,1987.1,10.13375]
[1617812612070,5.07985,1987.2,1987.1,9.11695]
[1617812612571,5.07985,1987.2,1987.1,2.90695]
[1617812613571,5.06381489,1987.2,1987.1,2.90695]
[1617812614372,5.06381489,1987.2,1987.1,9.05695]
[1617812614575,2.89091489,1987.2,1987.1,9.05695]
[1617812614773,70.9802,1987.8,1987.1,9.05695]
[1617812614976,0.01481173,1987.9,1987.1,39.05695]
[1617812615178,0.01481173,1987.9,1987.5,69.7791]
[1617812615374,0.29623455,1988.3,1987.5,69.7791]
[1617812615375,0.01480939,1988.3,1987.5,72.6877]
[1617812615575,0.01480939,1988.3,1987.6,6.2]
[1617812615778,0.01480918,1988.4,1987.6,6.2]
[1617812616178,0.01480873,1988.5,1987.6,6.2]
[1617812616576,0.01480873,1988.5,1988.1,2.90695]
[1617812616778,0.01480873,1988.5,1988.1,5.10755]
[1617812618579,2.90695,1988.2,1988.1,5.10755]
[1617812619784,2.90695,1988.2,1988.1,12.15475]
[1617812620182,2.90695,1988.2,1988.1,11.15755]
[1617812622383,2.90695,1988.2,1988.1,41.15755]
[1617812622884,2.90695,1988.2,1988.1,11.15755]
[1617812623085,2.90695,1988.2,1988.1,2.90695]
[1617812623285,0.01480531,1988.9,1988.1,32.90695]
[1617812623485,0.01473467,1989.7,1988.2,68.296]
[1617812623684,0.01473467,1989.7,1988.3,30.0]
[1617812623885,0.01473467,1989.7,1988.3,36.02]
[1617812624086,13.6393,1989.8,1988.3,36.02]
[1617812624385,13.6393,1989.8,1989.7,59.0282]
[1617812624587,16.54625,1989.8,1989.7,61.6389]
[1617812625887,16.54625,1989.8,1989.7,67.7489]
[1617812626487,2.90695,1989.8,1989.7,67.7489]
[1617812626688,2.90695,1989.8,1989.7,70.65585]
[1617812627989,2.90695,1989.8,1989.7,64.54585]
[1617812628311,2.90695,1989.8,1989.7,11.76765]
[1617812628694,2.90695,1990.0,1989.7,11.76765]
[1617812629493,2.90695,1990.0,1989.7,80.92575]
[1617812630599,2.90695,1990.0,1989.9,2.90695]
[1617812633599,2.90695,1990.0,1988.5,30.0]
[1617812633804,72.6806,1989.5,1988.5,32.0]
[1617812634001,74.7641,1989.5,1988.5,30.0]
[1617812634507,74.7641,1989.5,1988.6,6.05]
[1617812634707,74.7641,1989.5,1988.8,2.90695]
[1617812634915,74.7641,1989.5,1988.0,6.24]
[1617812635100,74.7641,1989.5,1987.9,79.3255]
[1617812635601,74.7641,1989.5,1988.0,6.24]
[1617812636401,74.7641,1989.5,1988.0,7.2522]
[1617812636601,74.7641,1989.5,1988.5,2.90695]
[1617812636802,74.7641,1989.5,1988.0,7.2522]
[1617812637002,30.0,1989.4,1987.9,79.3255]
[1617812637212,32.0,1989.4,1987.9,79.3255]
[1617812637611,32.0,1989.4,1983.9,26.8129]
[1617812637804,62.6882,1988.6,1986.6,64.6555]
[1617812638006,64.8364,1988.6,1986.6,94.6555]
[1617812638403,64.8364,1988.6,1986.7,6.14]
[1617812638704,64.8364,1988.6,1987.5,2.90695]
[1617812639103,66.8364,1988.6,1987.5,2.90695]
[1617812640837,2.90695,1987.6,1986.4,2.0]
[1617812641038,66.8182,1987.0,1986.1,30.0]
[1617812641231,69.1792,1987.0,1986.1,30.0]
[1617812641422,69.1792,1987.0,1985.5,2.0]
[1617812641609,69.1792,1987.0,1986.2,6.04]
[1617812642037,69.1792,1987.0,1985.9,30.0]
[1617812642308,69.1792,1987.0,1986.3,6.08]
[1617812642709,69.1792,1987.0,1986.9,2.90695]
[1617812643029,2.361,1987.0,1986.9,2.90695]
[1617812643810,2.361,1987.0,1986.9,75.17085]
[1617812644710,2.3531,1987.6,1987.5,2.90695]
[1617812644911,13.544,1987.8,1987.5,2.90695]
[1617812645128,13.544,1987.8,1987.5,5.47025]
[1617812646413,13.544,1987.8,1987.5,2.90695]
[1617812646914,13.544,1987.8,1987.7,2.90695]
[1617812648818,16.45095,1987.8,1987.7,2.90695]
[1617812653842,16.45095,1987.8,1987.7,68.82565]
[1617812653843,2.90695,1987.8,1987.7,68.82565]
[1617812654031,2.571,1988.5,1987.7,68.82565]
[1617812654238,13.4583,1988.8,1987.7,75.05565]
[1617812654826,13.4583,1988.8,1988.6,2.90695]
[1617812655035,13.4583,1988.8,1988.6,5.46445]
[1617812655729,16.4998,1989.4,1988.6,5.46445]
[1617812655930,13.9288,1989.4,1988.6,5.46445]
[1617812656828,13.9288,1989.4,1988.9,2.90695]
[1617812658131,13.9288,1989.4,1988.6,2.5575]
[1617812658329,16.5447,1989.4,1987.3,30.0]
[1617812658532,66.0652,1989.0,1987.5,65.177]
[1617812658730,68.2647,1989.0,1987.5,65.177]
[1617812658936,2.90695,1988.3,1988.0,2.90695]
[1617812660732,68.2647,1989.0,1988.0,2.90695]
[1617812660933,66.0652,1989.0,1988.5,2.90695]
[1617812661138,13.3374,1989.3,1988.5,5.53925]
[1617812661336,13.3374,1989.3,1988.6,6.23]
[1617812661835,13.9288,1989.4,1988.6,6.23]
[1617812662934,13.9288,1989.4,1988.8,2.90695]
[1617812665038,2.90695,1988.9,1988.8,2.90695]
[1617812665839,4.82255,1988.9,1988.8,2.90695]
[1617812666639,4.82255,1988.9,1987.8,70.9041]
[1617812666972,4.82255,1988.9,1988.1,2.90695]
[1617812666973,1.9156,1988.9,1988.1,2.90695]
[1617812669041,2.90695,1988.2,1988.1,2.90695]
[1617812669240,5.44245,1988.2,1988.1,2.90695]
[1617812669741,5.44245,1988.2,1986.9,2.0]
[1617812669941,69.7096,1988.1,1986.8,96.2595]
[1617812670542,69.7096,1988.1,1986.9,6.05]
[1617812671042,69.7096,1988.1,1987.3,2.90695]
[1617812672344,69.7096,1988.1,1987.4,6.29]
[1617812672546,69.7096,1988.1,1987.3,2.90695]
[1617812672756,69.7096,1988.1,1986.8,96.2595]
[1617812673150,69.7096,1988.1,1986.9,2.90695]
[1617812673645,69.7096,1988.1,1987.0,6.22]
[1617812674244,69.7096,1988.1,1986.9,2.90695]
[1617812675045,2.90695,1987.0,1986.9,2.90695]
[1617812675246,5.74155,1987.0,1986.9,2.90695]
[1617812676582,77.0397,1986.9,1985.8,2.0]
[1617812676799,77.0397,1986.9,1985.7,30.0]
[1617812677154,77.0397,1986.9,1986.3,2.90695]
[1617812677352,77.0397,1986.9,1985.8,6.23]
[1617812677554,77.0397,1986.9,1985.5,63.1075]
[1617812678370,77.0397,1986.9,1985.6,6.07]
[1617812678557,77.0397,1986.9,1985.5,63.1075]
[1617812678762,3.8456,1987.0,1985.0,32.0]
[1617812679061,66.6784,1986.0,1985.0,32.0]
[1617812679256,69.6075,1986.0,1985.7,2.90695]
[1617812681362,69.6075,1986.0,1985.9,2.90695]
[1617812682062,78.6969,1986.7,1985.9,2.90695]
[1617812682263,78.6969,1986.7,1985.9,5.28065]
[1617812682563,78.6969,1986.7,1986.0,6.28]
[1617812682963,13.989,1987.6,1986.1,30.0]
[1617812683163,13.989,1987.6,1986.2,6.33]
[1617812683363,68.2071,1987.5,1987.3,2.90695]
[1617812683564,68.2071,1987.5,1987.3,5.39935]
[1617812686071,68.2071,1987.5,1987.4,6.25]
[1617812687169,13.8156,1988.1,1987.4,6.25]
[1617812687369,13.8156,1988.1,1988.0,2.90695]
[1617812687581,13.8156,1988.1,1988.0,5.16375]
[1617812689077,0.01476767,1988.4,1988.0,5.16375]
[1617812689282,0.01476767,1988.4,1988.3,2.90695]
[1617812689885,0.01476767,1988.4,1988.3,9.05695]
[1617812690679,0.01476767,1988.4,1988.3,2.90695]
[1617812691278,2.92171767,1988.4,1988.3,2.90695]
[1617812691795,2.92171767,1988.4,1987.4,30.0]
[1617812691993,83.0989,1988.3,1987.1,76.9223]
[1617812692579,83.0989,1988.3,1987.2,6.18]
[1617812693281,83.0989,1988.3,1987.8,2.90695]
[1617812694721,62.5775,1987.7,1986.3,100.85]
[1617812694911,64.8996,1987.7,1986.3,70.85]
[1617812695381,64.8996,1987.7,1986.9,2.90695]
[1617812697383,2.90695,1987.0,1986.9,2.90695]
[1617812698112,64.8996,1987.7,1986.9,2.90695]
[1617812698383,62.5775,1987.7,1986.9,8.99695]
[1617812698783,0.01481913,1988.3,1986.9,8.99695]
[1617812699162,75.1549,1988.3,1987.0,61.6339]
[1617812699336,75.1549,1988.3,1987.1,30.0]
[1617812699505,2.90695,1988.2,1987.7,2.90695]
[1617812699785,2.90695,1988.2,1987.8,6.27]
[1617812700687,2.90695,1988.2,1987.7,5.12315]
[1617812700911,57.1222,1988.1,1987.7,2.90695]
[1617812701408,2.90695,1987.8,1987.7,2.90695]
[1617812701687,2.90695,1987.8,1986.9,74.1242]
[1617812701889,4.95885,1987.8,1986.9,74.1242]
[1617812702188,4.95885,1987.8,1986.9,2.0]
[1617812702388,59.3343,1987.3,1986.1,2.0]
[1617812702587,61.5704,1987.3,1986.1,2.0]
[1617812702787,61.5704,1987.3,1986.1,32.0]
[1617812702988,61.5704,1987.3,1986.2,6.29]
[1617812703187,61.5704,1987.3,1986.2,8.29]
[1617812703388,61.5704,1987.3,1986.8,2.90695]
[1617812705389,2.90695,1986.9,1986.6,2.90695]
[1617812705688,5.12845,1986.9,1986.6,2.90695]
[1617812706489,2.90695,1986.9,1986.6,2.90695]
[1617812707294,2.90695,1986.9,1986.7,6.31]
[1617812707491,2.90695,1986.9,1986.8,2.90695]
[1617812709494,2.90695,1986.9,1986.6,2.90695]
[1617812709700,5.11875,1986.9,1986.6,2.90695]
[1617812710394,5.11875,1986.9,1985.9,79.1253]
[1617812710597,5.11875,1986.9,1985.5,32.0]
[1617812710797,67.842,1986.5,1985.5,32.0]
[1617812711095,70.8595,1986.5,1985.5,2.0]
[1617812711398,70.8595,1986.5,1985.6,6.1]
[1617812711608,70.8595,1986.5,1986.0,2.90695]
[1617812712000,70.8595,1986.5,1985.7,6.31]
[1617812712196,70.8595,1986.5,1985.1,78.3955]
[1617812712897,70.8595,1986.5,1985.2,6.33]
[1617812713098,3.0175,1986.5,1985.2,6.33]
[1617812713298,64.2611,1985.8,1985.2,6.33]
[1617812713497,66.4331,1985.8,1985.4,2.90695]
[1617812714299,66.4331,1985.8,1984.3,61.1328]
[1617812714501,2.172,1985.8,1983.8,2.0]
[1617812715103,67.0105,1985.0,1983.9,6.04]
[1617812715299,69.7291,1985.0,1984.0,2.0]
[1617812715500,69.7291,1985.0,1984.6,2.90695]
[1617812715800,69.7291,1985.0,1984.7,3.39]
[1617812716601,2.7186,1985.0,1984.7,3.39]
[1617812717299,57.7287,1985.6,1984.7,3.39]
[1617812717500,57.7287,1985.6,1985.0,2.90695]
[1617812719103,57.7287,1985.6,1985.1,6.18]
[1617812719801,2.90695,1985.2,1985.1,6.18]
[1617812721705,57.7287,1985.6,1985.1,6.18]
[1617812721904,57.7287,1985.6,1985.1,39.2379]
[1617812722721,57.7287,1985.6,1985.1,9.2379]
[1617812722917,57.7287,1985.6,1985.1,6.18]
[1617812723418,57.7287,1985.6,1985.0,2.90695]
[1617812723612,2.90695,1985.2,1985.0,2.90695]
[1617812723819,5.99235,1985.2,1984.5,61.1595]
[1617812724005,5.99235,1985.2,1983.7,30.0]
[1617812724206,79.5584,1985.0,1983.9,2.0]
[1617812724606,79.5584,1985.0,1984.0,6.28]
[1617812725006,79.5584,1985.0,1983.9,6.06]
[1617812725207,79.5584,1985.0,1983.9,8.06]
[1617812725406,79.5584,1985.0,1984.1,6.17]
[1617812725605,79.5584,1985.0,1984.4,2.90695]
[1617812726607,79.5584,1985.0,1983.5,30.0]
[1617812727207,79.5584,1985.0,1983.6,6.27]
[1617812727609,79.5584,1985.0,1984.0,2.90695]
[1617812729715,2.90695,1984.1,1984.0,2.90695]
[1617812729915,5.26175,1984.1,1984.0,2.90695]
[1617812731018,2.90695,1984.1,1984.0,2.90695]
[1617812731718,2.90695,1984.1,1984.0,9.11695]
[1617812732520,79.5584,1985.0,1984.0,9.11695]
[1617812732822,13.547,1985.8,1984.7,79.5624]
[1617812733022,13.547,1985.8,1984.7,111.6521]
[1617812733224,75.44,1986.3,1984.8,6.31]
[1617812733421,75.44,1986.3,1984.9,32.0]
[1617812733623,59.2507,1987.1,1985.5,2.90695]
[1617812733930,58.1564,1986.9,1985.5,5.11955]
[1617812734132,58.1564,1986.9,1985.6,6.14]
[1617812734323,27.2507,1987.1,1985.6,6.14]
[1617812734521,27.2507,1987.1,1986.0,84.2773]
[1617812734845,27.2507,1987.1,1986.0,87.3472]
[1617812735029,28.246,1987.1,1986.0,87.3472]
[1617812735229,27.2507,1987.1,1986.0,87.3472]
[1617812735646,2.90695,1986.1,1986.0,87.3472]
[1617812736927,27.2507,1987.1,1986.0,87.3472]
[1617812737329,27.2507,1987.1,1986.0,93.6372]
[1617812737729,27.2507,1987.1,1986.4,2.90695]
[1617812737932,27.2507,1987.1,1986.4,5.81215]
[1617812738929,27.2507,1987.1,1986.4,2.9052]
[1617812739131,27.2507,1987.1,1986.0,84.2773]
[1617812739632,29.38,1987.1,1986.0,84.2773]
[1617812739834,2.90695,1986.1,1986.0,84.2773]
[1617812740241,2.90695,1986.1,1985.8,2.90695]
[1617812740542,4.77515,1986.1,1985.8,2.90695]
[1617812741134,4.77515,1986.1,1985.9,6.18]
[1617812742535,2.90695,1986.1,1985.9,6.18]
[1617812743935,2.90695,1986.1,1986.0,2.90695]
[1617812744436,27.2507,1987.1,1986.1,80.8556]
[1617812744636,27.2507,1987.1,1986.1,82.9142]
[1617812744936,27.2507,1987.1,1986.2,6.17]
[1617812745344,27.2507,1987.1,1986.2,36.17]
[1617812745835,27.2507,1987.1,1986.6,2.90695]
[1617812746436,27.2507,1987.1,1986.2,30.0]
[1617812746637,28.2511,1987.1,1985.7,30.0]
[1617812746836,62.8131,1986.8,1985.7,30.0]
[1617812747138,62.8131,1986.8,1985.5,67.9678]
[1617812747338,62.8131,1986.8,1985.8,6.07]
[1617812747537,62.8131,1986.8,1985.5,67.9678]
[1617812747748,2.90695,1985.9,1985.7,2.90695]
[1617812747937,5.19985,1985.9,1985.7,2.90695]
[1617812748737,5.19985,1985.9,1985.8,6.13]
[1617812750136,5.19985,1985.9,1985.7,2.90695]
[1617812752240,5.19985,1985.9,1983.9,0.9968]
[1617812752441,56.4419,1985.7,1984.6,56.4767]
[1617812753140,58.4419,1985.7,1984.6,56.4767]
[1617812753642,88.4419,1985.7,1984.6,56.4767]
[1617812753844,2.90695,1984.7,1984.6,56.4767]
[1617812754042,5.49005,1984.7,1984.4,2.90695]
[1617812755145,2.5831,1984.7,1984.4,2.90695]
[1617812755944,2.5831,1984.7,1984.6,2.90695]
[1617812756544,12.8217,1985.8,1984.6,9.17695]
[1617812756962,12.8217,1985.8,1984.7,66.596]
[1617812757854,12.8217,1985.8,1984.8,2.90695]
[1617812758046,12.8217,1985.8,1984.8,9.01695]
[1617812758751,12.8217,1985.8,1984.7,66.596]
[1617812758945,2.0,1985.7,1984.7,66.596]
[1617812759846,2.90695,1984.8,1984.7,66.596]
[1617812760145,4.89365,1984.8,1984.7,66.596]
[1617812761048,4.89365,1984.8,1984.5,2.90695]
[1617812761850,2.90695,1984.6,1984.5,2.90695]
[1617812763655,2.90695,1984.6,1983.2,2.0]
[1617812763856,60.676,1984.0,1983.9,2.90695]
[1617812764060,63.3286,1984.0,1983.9,2.90695]
[1617812764557,63.3286,1984.0,1982.5,88.4827]
[1617812765160,63.3286,1984.0,1982.6,6.28]
[1617812765960,63.3286,1984.0,1983.6,2.90695]
[1617812767862,63.3286,1984.0,1982.5,56.4827]
[1617812768061,2.90695,1983.7,1983.4,2.90695]
[1617812769687,27.0762,1984.5,1983.4,2.90695]
[1617812769688,27.0762,1984.5,1983.5,6.19]
[1617812769965,27.0762,1984.5,1984.1,2.90695]
[1617812770169,27.0762,1984.5,1984.1,5.54635]
[1617812770871,27.0762,1984.5,1984.1,2.6394]
[1617812771268,27.0762,1984.5,1983.5,2.7138]
[1617812771971,27.0762,1984.5,1984.0,2.90695]
[1617812773378,27.0762,1984.5,1983.4,62.6015]
[1617812773576,29.2765,1984.5,1983.4,62.6015]
[1617812773879,29.2765,1984.5,1982.5,30.0]
[1617812773880,76.4467,1983.8,1982.5,30.0]
[1617812774176,79.1337,1983.8,1983.4,2.90695]
[1617812775978,2.90695,1983.5,1983.4,2.90695]
[1617812777482,2.90695,1983.5,1982.3,83.028]
[1617812777983,79.1337,1983.8,1983.1,2.90695]
[1617812780094,2.90695,1983.2,1983.1,2.90695]
[1617812780289,5.53115,1983.2,1983.1,2.90695]
[1617812781704,2.90695,1983.2,1983.1,2.90695]
[1617812783991,82.92755,1983.2,1983.1,2.90695]
[1617812785090,82.92755,1983.2,1981.9,30.0]
[1617812785593,2.90695,1983.2,1982.0,6.06]
[1617812785895,60.5416,1982.7,1982.0,6.06]
[1617812786092,63.0303,1982.7,1982.0,6.06]
[1617812786294,63.0303,1982.7,1981.4,32.0]
[1617812786994,63.0303,1982.7,1981.5,6.3]
[1617812787595,2.4887,1982.7,1981.5,6.3]
[1617812787794,80.8193,1981.8,1981.4,6.34]
[1617812788095,82.8595,1981.8,1981.7,2.90695]
[1617812789296,82.8595,1981.8,1980.7,32.0]
[1617812789897,82.8595,1981.8,1980.8,6.13]
[1617812790096,82.8595,1981.8,1981.4,2.90695]
[1617812791104,2.0402,1981.8,1981.4,2.90695]
[1617812791298,72.6622,1982.6,1981.5,6.17]
[1617812791702,72.6622,1982.6,1981.5,36.17]
[1617812792202,72.6622,1982.6,1982.5,2.90695]
[1617812792398,72.6622,1982.6,1982.5,5.91005]
[1617812793098,72.6622,1982.6,1982.5,3.0031]
[1617812793511,72.6622,1982.6,1982.0,2.4328]
[1617812794116,72.6622,1982.6,1982.1,2.90695]
[1617812794117,2.90695,1982.3,1982.1,2.90695]
[1617812794306,5.87145,1982.3,1982.1,2.90695]
[1617812794702,58.3908,1982.1,1980.7,2.0]
[1617812795401,58.3908,1982.1,1980.8,6.35]
[1617812796101,58.3908,1982.1,1981.5,2.90695]
[1617812798203,2.90695,1981.6,1981.5,2.90695]
[1617812798405,5.01095,1981.6,1981.5,2.90695]
[1617812800008,2.104,1981.6,1981.5,2.90695]
[1617812800207,2.90695,1981.8,1981.5,2.90695]
[1617812800608,2.90695,1981.8,1981.6,6.09]
[1617812801108,2.90695,1981.8,1981.5,2.90695]
[1617812801808,13.7254,1982.8,1981.5,2.90695]
[1617812802010,80.6989,1982.2,1981.5,35.50145]
[1617812802327,80.6989,1982.2,1981.6,6.17]
[1617812802611,80.6989,1982.2,1981.6,36.17]
[1617812804012,80.6989,1982.2,1981.6,6.17]
[1617812804310,80.6989,1982.2,1981.1,32.0]
[1617812804311,80.6989,1982.2,1982.1,2.90695]
[1617812806214,83.60585,1982.2,1981.9,2.90695]
[1617812806511,85.95955,1982.2,1981.9,2.90695]
[1617812806811,83.0526,1982.2,1981.9,2.90695]
[1617812807012,83.0526,1982.2,1982.0,6.07]
[1617812807412,83.0526,1982.2,1981.9,2.90695]
[1617812808313,2.90695,1982.0,1981.9,2.90695]
[1617812809013,80.6989,1982.2,1981.9,2.90695]
[1617812809313,80.6989,1982.2,1981.9,9.05695]
[1617812809512,80.6989,1982.2,1981.9,39.05695]
[1617812809713,14.1262,1983.0,1981.9,39.05695]
[1617812809915,75.6846,1983.0,1981.9,39.05695]
[1617812810315,75.6846,1983.0,1982.8,2.90695]
[1617812810514,75.6846,1983.0,1982.7,3.088]
[1617812811721,75.6846,1983.0,1981.7,82.3783]
[1617812812018,14.1262,1983.0,1981.3,2.0]
[1617812812217,61.129,1982.3,1981.2,30.0]
[1617812812419,63.4077,1982.3,1982.2,2.90695]
[1617812814220,63.4077,1982.3,1981.1,30.0]
[1617812814420,63.4077,1982.3,1981.9,2.90695]
[1617812815725,61.129,1982.3,1981.9,2.90695]
[1617812815936,78.4881,1982.8,1981.9,2.90695]
[1617812816123,14.1262,1983.0,1981.9,32.90695]
[1617812816324,14.1262,1983.0,1982.6,2.90695]
[1617812816622,14.1262,1983.0,1982.6,4.77885]
[1617812818326,14.1262,1983.0,1982.9,2.90695]
[1617812819429,2.90695,1983.1,1982.9,2.90695]
[1617812821532,2.90695,1983.1,1983.0,6.2]
[1617812821732,2.90695,1983.1,1983.0,2.3555]
[1617812824138,78.4564,1983.7,1983.0,2.3555]
[1617812824341,14.1484,1984.0,1983.0,8.4955]
[1617812824543,14.1484,1984.0,1983.6,2.90695]
[1617812824836,14.1484,1984.0,1983.6,5.15815]
[1617812825035,14.1484,1984.0,1983.8,62.6129]
[1617812826116,13.4896,1984.3,1983.8,62.6129]
[1617812826292,70.5766,1985.0,1983.8,62.6129]
[1617812826545,70.5766,1985.0,1984.2,2.90695]
[1617812826861,12.8851,1985.2,1984.2,2.90695]
[1617812826862,12.8851,1985.2,1984.2,5.77465]
[1617812827066,12.8851,1985.2,1984.4,75.9997]
[1617812828559,12.8851,1985.2,1984.2,5.77465]
[1617812828560,12.8851,1985.2,1984.2,2.8677]
[1617812828767,62.2353,1984.8,1983.6,2.2512]
[1617812828956,65.2765,1984.8,1983.4,74.2782]
[1617812829554,67.2765,1984.8,1983.5,6.08]
[1617812829755,67.2765,1984.8,1983.4,74.2782]
[1617812830449,67.2765,1984.8,1983.5,2.90695]
[1617812832452,2.90695,1983.6,1983.4,74.2782]
[1617812833952,2.90695,1983.6,1983.5,6.27]
[1617812834255,2.90695,1983.6,1983.5,8.4367]
[1617812834754,2.90695,1983.6,1983.5,11.34365]
[1617812836661,62.2353,1984.8,1983.5,11.34365]
[1617812838660,2.90695,1983.6,1983.5,11.34365]
[1617812838862,2.90695,1983.6,1983.5,2.90695]
[1617812843472,4.81725,1983.6,1983.5,2.90695]
[1617812845069,2.90695,1983.6,1983.5,2.90695]
[1617812847872,14.1031,1984.5,1983.5,9.02695]
[1617812848071,93.4639,1984.5,1983.6,68.1618]
[1617812848273,93.4639,1984.5,1983.6,70.9931]
[1617812848871,2.90695,1983.7,1983.6,70.9931]
[1617812849071,2.90695,1983.7,1983.6,2.8313]
[1617812849375,2.90695,1983.7,1983.5,2.90695]
[1617812851775,2.90695,1983.7,1983.6,6.05]
[1617812851986,2.90695,1983.7,1983.6,8.299]
[1617812852378,2.90695,1983.7,1983.6,75.6713]
[1617812853179,14.1031,1984.5,1983.6,75.6713]
[1617812854780,14.1031,1984.5,1984.1,2.90695]
[1617812855180,14.1031,1984.5,1984.1,5.82605]
[1617812855883,14.1031,1984.5,1984.2,58.3732]
[1617812856584,13.4814,1984.8,1984.2,58.3732]
[1617812856785,13.4814,1984.8,1984.7,2.90695]
[1617812856987,59.3258,1985.1,1984.7,4.96825]
[1617812857186,12.97354306,1985.4,1984.7,11.28825]
[1617812857388,12.9587,1985.4,1984.8,70.2645]
[1617812858086,12.9587,1985.4,1984.9,6.12]
[1617812858287,0.01484111,1985.8,1984.9,6.12]
[1617812858989,0.01483927,1986.1,1985.1,2.90695]
[1617812859190,0.01483927,1986.1,1985.4,71.4299]
[1617812859492,13.50893908,1986.2,1985.4,71.4299]
[1617812859889,13.50893908,1986.2,1985.5,6.09]
[1617812860090,13.50893908,1986.2,1985.5,8.0486]
[1617812860290,13.50893908,1986.2,1985.5,1.9586]
[1617812860792,13.4941,1986.2,1985.5,1.9586]
[1617812860991,2.90695,1985.6,1985.5,1.9586]
[1617812861290,2.90695,1985.6,1985.5,8.1686]
[1617812861694,2.90695,1985.6,1985.5,1.9586]
[1617812862593,2.90695,1985.6,1985.1,5.95695]
[1617812862794,2.90695,1985.6,1985.5,60.5845]
[1617812863093,13.50895525,1986.2,1985.5,60.5845]
[1617812863896,13.50895525,1986.2,1985.5,63.0599]
[1617812864498,0.01485287,1986.3,1985.6,6.28]
[1617812864997,0.01485185,1986.5,1986.0,2.90695]
[1617812865306,13.5654,1986.8,1986.1,6.15]
[1617812865697,13.5654,1986.8,1986.0,85.57405]
[1617812866806,13.5654,1986.8,1986.1,6.25]
[1617812867102,2.90695,1986.2,1986.1,6.25]
[1617812867502,2.90695,1986.2,1986.0,88.42535]
[1617812869404,2.90695,1986.2,1986.1,6.18]
[1617812870204,13.5654,1986.8,1986.1,6.18]
[1617812871011,13.5654,1986.8,1986.4,2.90695]
[1617812871207,13.5654,1986.8,1986.4,5.55225]
[1617812872005,13.9863,1987.4,1986.9,71.9298]
[1617812872207,13.9863,1987.4,1986.9,73.877]
[1617812873210,13.9863,1987.4,1986.9,76.78395]
[1617812873509,14.0905,1988.1,1987.6,61.6454]
[1617812873713,14.0905,1988.1,1987.6,63.7381]
[1617812874708,2.0,1988.0,1987.6,2.0927]
[1617812875009,2.90695,1987.0,1985.6,2.0]
[1617812875412,2.90695,1987.0,1986.7,62.3205]
[1617812875848,2.90695,1987.0,1986.8,6.29]
[1617812877520,110.6608,1988.1,1986.8,6.29]
[1617812877714,110.6608,1988.1,1986.8,36.29]
[1617812877914,2.571,1988.5,1986.8,36.29]
[1617812878218,0.9915,1988.9,1986.8,36.29]
[1617812878219,80.8393,1988.9,1987.5,76.3799]
[1617812878429,80.8393,1988.9,1987.5,79.4451]
[1617812878631,80.8393,1988.9,1987.6,6.19]
[1617812878816,79.8478,1988.9,1987.6,6.19]
[1617812879019,2.90695,1987.7,1987.6,6.19]
[1617812879620,2.90695,1987.7,1987.5,5.97215]
[1617812879821,2.90695,1987.7,1987.5,2.90695]
[1617812880821,2.90695,1987.7,1987.3,66.0917]
[1617812881021,2.90695,1987.4,1987.3,66.0917]
[1617812882723,2.90695,1987.4,1986.9,2.90695]
[1617812882922,60.82675,1987.4,1986.9,2.90695]
[1617812883124,2.90695,1987.0,1986.9,2.90695]
[1617812883323,5.48695,1987.0,1986.5,76.7917]
[1617812884125,5.48695,1987.0,1985.6,30.0]
[1617812884326,75.3054,1986.5,1985.6,30.0]
[1617812884554,3.0728,1986.5,1985.5,30.0]
[1617812884825,3.0728,1986.5,1985.7,6.23]
[1617812885027,3.0728,1986.5,1986.0,2.90695]
[1617812886928,3.0728,1986.5,1985.6,77.5287]
[1617812887129,2.90695,1985.7,1985.6,80.43565]
[1617812887332,5.83995,1985.7,1985.6,80.43565]
[1617812887531,5.83995,1985.7,1985.6,86.47565]
[1617812889132,2.933,1985.7,1985.6,86.47565]